Cogmind - Beta 13 *** ADVENTURER MODE // 2024.03.30 @ 20:25:41 Player: Merlin1846 Result: Destroyed by B-75 Beast with Magnetic Acceleration Cannon Performance ------------- Evolutions (1) 500 Regions Visited (6) 1200 Robots Destroyed (47) 235 Value Destroyed (1155) 1155 Prototype IDs (4) 80 Alien Tech Used (0) 0 Bonus (0) 0 TOTAL SCORE: 3170 Bonus ------- None Cogmind --------- Core Integrity 0/400 Matter 262/300 Energy 100/100 System Corruption 0% Temperature Cool (0) Movement Core (200) Ox3 Location -6/Proximity Caves Parts ------- > --- POWER (1) -------- (None) > --- PROPULSION (4) --- (None) > --- UTILITY (2) ------ Medium Storage Unit Improved Signal Interpreter > --- WEAPON (2) ------- (None) > --- INVENTORY (10) --- Heat Sink Improved Heat Sink Medium Storage Unit High-capacity Battery (250) Experimental Sensor Array Tactical Coordination Suite Hardened Medium Armor Plating Makeshift Spear Peak State ------------ > --- POWER ------------ Nuclear Core > --- PROPULSION ------- Aluminum Leg Aluminum Leg Aluminum Leg Aluminum Leg > --- UTILITY ---------- Medium Storage Unit Improved Signal Interpreter > --- WEAPON ----------- Minigun Slug Cannon > --- INVENTORY -------- Ion Engine Heat Sink Improved Heat Sink Medium Storage Unit High-capacity Battery Experimental Sensor Array Tactical Coordination Suite Hardened Medium Armor Plating Minigun Enhanced Flamer [Rating: 21] Favorites ----------- Power Nuclear Core Engine Ion Engine Power Core Nuclear Core Propulsion Aluminum Leg Treads Light Treads Leg Aluminum Leg Wheel Wheel Flight Unit VTOL Module Utility Medium Storage Unit Device Sensor Array Storage Medium Storage Unit Processor Improved Signal Interpreter Weapon Minigun Energy Gun Medium Laser Ballistic Gun Minigun Ballistic Cannon Slug Cannon Launcher Grenade Launcher Special Weapon Enhanced Flamer Piercing Weapon Makeshift Spear Build | -11 -10 -10 -9 -9 -7 -6 ------- Run | Yrd Mat Min Mat Min Zio Pro Slots Evolved 2 | . . . 2 . . . Power . | . . . . . . . Propulsion 2 | . . . 2 . . . Utility . | . . . . . . . Weapon . | . . . . . . . Parts Attached 57 | 13 13 8 11 3 . 9 Power 11 | 1 3 2 4 . . 1 Engine 10 | 1 3 2 3 . . 1 Core 1 | . . . 1 . . . Reactor . | . . . . . . . Propulsion 18 | 8 2 1 3 3 . 1 Treads 1 | . . . 1 . . . Leg 11 | 3 2 1 2 3 . . Wheel 5 | 5 . . . . . . Hover . | . . . . . . . Flight 1 | . . . . . . 1 Utility 11 | 1 7 1 2 . . . Device 2 | 1 1 . . . . . Storage 8 | . 6 1 1 . . . Processor 1 | . . . 1 . . . Hackware . | . . . . . . . Protection . | . . . . . . . Artifact . | . . . . . . . Weapon 17 | 3 1 4 2 . . 7 Energy Gun 4 | 2 . 1 . . . 1 Energy Cannon . | . . . . . . . Ballistic Gun 8 | 1 . 3 2 . . 2 Ballistic Cannon 2 | . . . . . . 2 Launcher 1 | . 1 . . . . . Special Weapon 1 | . . . . . . 1 Impact Weapon . | . . . . . . . Slashing Weapon . | . . . . . . . Piercing Weapon 1 | . . . . . . 1 Special Melee Weapon . | . . . . . . . Unidentified Prototypes . | . . . . . . . Parts Lost 11 | . . . . . . 11 Power 2 | . . . . . . 2 Propulsion 5 | . . . . . . 5 Utility . | . . . . . . . Weapon 4 | . . . . . . 4 Highest Loss Streak 7 | . . . . . . 7 To Critical Strikes . | . . . . . . . Average Slot Usage (%) 86 | . 98 100 93 100 100 58 Engine 6 | . 14 14 8 . . 5 Core 4 | . . . 1 11 11 2 Leg 26 | . 22 28 33 44 44 8 Device 4 | . 15 14 1 . . . Storage 11 | . 11 14 11 11 11 11 Processor 7 | . . . 9 11 11 11 Energy Gun 3 | . 14 8 . . . 2 Ballistic Gun 13 | . . 12 22 22 22 8 Ballistic Cannon 1 | . . . . . . 6 Launcher 2 | . 13 6 . . . . Naked Turns . | . . . . . . . Heaviest Build 26 | 8 16 21 23 23 23 26 Greatest Support 40 | 20 20 20 40 40 40 40 Greatest Overweight (x) 8 | . . 1 1 . . 8 Average Overweight (x) . | . . . . . . 3 Largest Inventory Capacity 10 | 5 8 10 10 10 10 10 Average Capacity 9 | 5 7 9 10 10 10 10 Most Carried 10 | 5 8 10 10 10 10 10 Average Carried 8 | 2 7 9 9 10 9 8 Final Capacity 10 | 5 8 10 10 10 10 10 Final Carried 10 | 5 8 10 10 10 10 8 Class Distribution -------------------- 52% | Mutant 47% | Scavenger-Mutant Dominant Class ---------------- Mutant | -10/Materials Mutant | -10/Mines Scavenger-Mutant | -9/Materials Scavenger-Mutant | -9/Mines Scavenger-Mutant | -7/Zion Mutant | -6/Proximity Caves Resources | -11 -10 -10 -9 -9 -7 -6 ----------- Run | Yrd Mat Min Mat Min Zio Pro Matter Collected 1499 | 321 162 230 357 180 11 238 Remotely . | . . . . . . . Salvage Created 1541 | 44 284 241 460 235 . 277 Parts 99 | 3 23 12 29 17 . 15 Haulers Intercepted . | . . . . . . . Recyclers Shooed 2 | . 1 1 . . . . Parts Field Recycled . | . . . . . . . Retrieved Matter . | . . . . . . . Parts Self-Destructed 16 | . . . . . . 16 Prevented . | . . . . . . . Kills | -11 -10 -10 -9 -9 -7 -6 ------- Run | Yrd Mat Min Mat Min Zio Pro Combat Hostiles Destroyed 38 | 1 6 5 11 9 . 6 Guns 28 | 1 2 5 11 9 . . Cannons 6 | . . . . . . 6 AOE 4 | . 4 . . . . . Classes Destroyed 10 | 1 4 1 2 1 . 1 Worker 1 | . . 1 . . . . Builder 1 | . 1 . . . . . Recycler 3 | . 2 1 . . . . Minesweeper 1 | . . . . . . 1 Watcher 4 | . 2 . 2 . . . Swarmer 17 | . 3 3 3 4 . 4 Grunt 16 | 1 3 2 4 4 . 2 Duelist 1 | . . . 1 . . . Sentry 3 | . . . 3 . . . Assembled 1 | . . . . 1 . . Best Kill Streak 9 | 1 6 3 9 4 . 6 Combat Bots Only 8 | 1 4 3 8 4 . 6 Max Kills in Single Turn 2 | 1 2 1 1 2 . 1 Gunslinging 1 | . . . . 1 . . Exploded 2 | . 2 . . . . . Melee . | . . . . . . . Uniques/NPCs Destroyed . | . . . . . . . Combat | -11 -10 -10 -9 -9 -7 -6 -------- Run | Yrd Mat Min Mat Min Zio Pro Hostile Shots Fired 302 | 2 40 44 39 37 . 140 Missed 94 | . 17 14 15 10 . 38 Damage Taken 2244 | 16 252 248 251 198 . 1279 Core 547 | 16 61 53 48 14 . 355 Absorbed by Shields . | . . . . . . . Ignored by Resistances 659 | 6 77 79 74 61 . 362 Regen/Repaired (Parts) 9 | . . . . . 9 . Core Remaining (%) 70 | 93 . 48 . . . . Volleys Fired 132 | 2 29 23 33 18 . 27 Largest 2 | 2 2 2 2 2 . 2 Hottest 128 | 90 80 70 50 50 . 128 Shots Fired 231 | 4 43 35 66 36 . 47 Gun 188 | 4 29 35 66 36 . 18 Cannon 26 | . . . . . . 26 Launcher 14 | . 14 . . . . . Special 3 | . . . . . . 3 Kinetic 158 | . . 12 66 36 . 44 Thermal 59 | 4 29 23 . . . 3 Explosive 14 | . 14 . . . . . Electromagnetic . | . . . . . . . Robot Hit Streak 21 | 2 21 11 15 7 . 7 Robot Miss Streak 8 | 1 2 2 2 4 . 8 Penetration Max . | . . . . . . . Secondary Targets 6 | . . . 2 4 . . Max Gunslinging Chain 1 | . . . 1 1 . . Shots Hit Robots 164 | 3 33 26 49 26 . 27 Core Hits 74 | 2 19 11 18 10 . 14 Critical Kills 2 | . . . . . . 2 Critical Parts Destroyed 1 | . . . . . . 1 Critical Strikes 6 | . 2 1 . . . 3 Burn 3 | . 2 1 . . . . Destroy 3 | . . . . . . 3 Melee Attacks . | . . . . . . . Impact . | . . . . . . . Slashing . | . . . . . . . Piercing . | . . . . . . . Sneak Attacks . | . . . . . . . Combat Hostiles . | . . . . . . . Follow-up Attacks . | . . . . . . . Damage Inflicted 3252 | 33 911 327 850 435 . 696 Guns 2067 | 33 286 318 850 435 . 145 Cannons 529 | . . . . . . 529 Explosions 625 | . 625 . . . . . Melee . | . . . . . . . Ramming 9 | . . 9 . . . . Kinetic 2057 | . . 98 850 435 . 674 Thermal 561 | 33 286 220 . . . 22 Explosive 625 | . 625 . . . . . Electromagnetic . | . . . . . . . Impact . | . . . . . . . Slashing . | . . . . . . . Piercing . | . . . . . . . Highest Corruption . | . . . . . . . Average Corruption . | . . . . . . . Corruption Purged . | . . . . . . . Corruption Blocked . | . . . . . . . Overload Shots . | . . . . . . . Overflow Damage 39 | . 18 . . . . 21 Projectiles 21 | . . . . . . 21 Explosions 18 | . 18 . . . . . Melee . | . . . . . . . Knockbacks 2 | . . . . . . 2 Impact . | . . . . . . . Kinetic 2 | . . . . . . 2 Secondary . | . . . . . . . Self-Inflicted Damage 60 | . 60 . . . . . Shots 3 | . 3 . . . . . Rammed . | . . . . . . . Targets Rammed 2 | . . 2 . . . . Kicked 2 | . . 2 . . . . Crushed . | . . . . . . . Highest Temperature 261 | 72 228 78 17 29 . 261 Average Temperature 59 | 40 72 31 5 10 . 125 Received Heat Transfer 871 | 12 90 141 93 54 . 481 Effects 1 | . . . . . . 1 Energy Bleed 1 | . . . . . . 1 Siege Activations . | . . . . . . . Robots Corrupted . | . . . . . . . Combat Hostiles . | . . . . . . . Parts Fried . | . . . . . . . Impact Corruptions . | . . . . . . . Robots Melted . | . . . . . . . Combat Hostiles . | . . . . . . . Parts Melted 4 | . 3 1 . . . . Heat Transferred 1974 | 87 999 728 . . . 160 Parts Sabotaged . | . . . . . . . Parts Stolen . | . . . . . . . Parts Stripped . | . . . . . . . Power Chain Reactions . | . . . . . . . Alert | -11 -10 -10 -9 -9 -7 -6 ------- Run | Yrd Mat Min Mat Min Zio Pro Peak Influence 419 | 20 297 161 419 258 . . Initial 138 | . 11 31 52 138 . . Average 160 | 4 148 96 273 167 . . Maximum Alert Level 2 | . 1 . 2 1 . . Low Security (%) 69 | 100 63 100 29 75 . . Level 1 24 | . 36 . 42 24 . . Level 2 5 | . . . 27 . . . Level 3 . | . . . . . . . Level 4 . | . . . . . . . Level 5 . | . . . . . . . High Security . | . . . . . . . Max Security . | . . . . . . . Squads Dispatched . | . . . . . . . Investigation . | . . . . . . . Extermination . | . . . . . . . Reinforcement . | . . . . . . . Assault . | . . . . . . . Garrison . | . . . . . . . Intercept . | . . . . . . . Searches Triggered . | . . . . . . . Construction Impeded . | . . . . . . . Haulers Reinforced . | . . . . . . . Active Scanning Responses . | . . . . . . . Cargo Convoy Interrupts . | . . . . . . . Stealth | -11 -10 -10 -9 -9 -7 -6 --------- Run | Yrd Mat Min Mat Min Zio Pro Distress Signals 1 | . 1 . . . . . Communications Jammed . | . . . . . . . Distress Signals . | . . . . . . . Times Spotted 53 | 1 12 5 14 9 . 12 Peak Tracking Total 7 | 1 4 3 3 4 . 7 Tactical Retreats 4 | . 2 . . . . 2 Traps | -11 -10 -10 -9 -9 -7 -6 ------- Run | Yrd Mat Min Mat Min Zio Pro Traps Triggered . | . . . . . . . Indirectly . | . . . . . . . Trap Hack Attempts . | . . . . . . . Triggered . | . . . . . . . Disarmed . | . . . . . . . Reprogrammed . | . . . . . . . Reused . | . . . . . . . Traps Extracted . | . . . . . . . Installed . | . . . . . . . Triggered . | . . . . . . . Machines | -11 -10 -10 -9 -9 -7 -6 ---------- Run | Yrd Mat Min Mat Min Zio Pro Machines Disabled 1 | . 1 . . . . . Max in Single Turn 1 | . 1 . . . . . Machines Repaired . | . . . . . . . Machines Dismantled . | . . . . . . . Machines Sabotaged . | . . . . . . . Overloaded Fab Kills . | . . . . . . . Hacking | -11 -10 -10 -9 -9 -7 -6 --------- Run | Yrd Mat Min Mat Min Zio Pro Machines Accessed 4 | . . . 3 . 1 . Terminals 1 | . . . 1 . . . Fabricators . | . . . . . . . Repair Stations . | . . . . . . . Recycling Units 1 | . . . 1 . . . Scanalyzers 1 | . . . 1 . . . Garrison Access . | . . . . . . . Total Hacks 9 | . . . 3 . 6 . Successful 9 | . . . 3 . 6 . Failed . | . . . . . . . Catastrophic . | . . . . . . . Database Lockouts . | . . . . . . . Manual 7 | . . . 2 . 5 . Terminals 1 | . . . 1 . . . Fabricators . | . . . . . . . Repair Stations . | . . . . . . . Recycling Units 1 | . . . 1 . . . Scanalyzers 1 | . . . 1 . . . Garrison Access . | . . . . . . . Terminal Hacks 7 | . . . 1 . 6 . Part Schematic 6 | . . . . . 6 . Prototype ID Bank 1 | . . . 1 . . . Fabricator Hacks . | . . . . . . . Repair Station Hacks . | . . . . . . . Recycling Unit Hacks 1 | . . . 1 . . . Recycle Component 1 | . . . 1 . . . Scanalyzer 1 | . . . 1 . . . Insert Component 1 | . . . 1 . . . Garrison Access Hacks . | . . . . . . . Unauthorized Hacks . | . . . . . . . Terminals . | . . . . . . . Fabricators . | . . . . . . . Repair Stations . | . . . . . . . Recycling Units . | . . . . . . . Scanalyzers . | . . . . . . . Garrison Access . | . . . . . . . Data Cores Recovered . | . . . . . . . Used . | . . . . . . . Hacking Detections . | . . . . . . . Full Trace Events . | . . . . . . . Feedback Events . | . . . . . . . Feedback Blocked . | . . . . . . . Robot Schematics Acquired 3 | . . . . . 3 . Robots Built . | . . . . . . . Authchips . | . . . . . . . Time . | . . . . . . . Total Robot Build Rating . | . . . . . . . Part Schematics Acquired 21 | . . . . . 21 . Parts Built . | . . . . . . . Authchips . | . . . . . . . Time . | . . . . . . . Total Part Build Rating . | . . . . . . . Parts Repaired . | . . . . . . . Time . | . . . . . . . Parts Recycled 1 | . . . 1 . . . Recycled Matter . | . . . . . . . Retrieved Matter . | . . . . . . . Retrieved Components . | . . . . . . . Parts Scanalyzed . | . . . . . . . Part Schematics Acquired . | . . . . . . . Parts Damaged . | . . . . . . . Bothacking | -11 -10 -10 -9 -9 -7 -6 ------------ Run | Yrd Mat Min Mat Min Zio Pro Used RIF Installer . | . . . . . . . Robots Hacked . | . . . . . . . Non-combat . | . . . . . . . Combat . | . . . . . . . Robot Hacks Applied . | . . . . . . . Relay Couplers Released . | . . . . . . . Fabnet Peak Effective % . | . . . . . . . Robots Rewired . | . . . . . . . Allies Hacked . | . . . . . . . Hacks Repelled . | . . . . . . . Allies | -11 -10 -10 -9 -9 -7 -6 -------- Run | Yrd Mat Min Mat Min Zio Pro Total Allies . | . . . . . . . Largest Group . | . . . . . . . Highest-Rated Group . | . . . . . . . Highest-Rated Ally . | . . . . . . . Total Orders . | . . . . . . . Ally Attacks . | . . . . . . . Total Damage . | . . . . . . . Kills . | . . . . . . . Allies Corrupted . | . . . . . . . Allies Melted . | . . . . . . . Intel | -11 -10 -10 -9 -9 -7 -6 ------- Run | Yrd Mat Min Mat Min Zio Pro Robot Analysis Total . | . . . . . . . Derelict Logs Recovered 5 | . . 2 . 1 1 1 Drone Launches . | . . . . . . . Drone Recoveries . | . . . . . . . Exploration | -11 -10 -10 -9 -9 -7 -6 ------------- Run | Yrd Mat Min Mat Min Zio Pro Turns Passed 3454 | 87 512 399 364 487 533 1072 Spaces Moved 2010 | 89 357 222 202 314 435 391 Core 295 | 60 . . . . . 235 Treads . | . . . . . . . Legs 1582 | . 253 222 202 314 435 156 Wheels 133 | 29 104 . . . . . Hover . | . . . . . . . Flight . | . . . . . . . Fastest Speed 50 | 50 80 120 120 120 120 120 Average Speed 143 | 59 108 142 124 120 120 250 Slowest Speed 450 | 80 120 190 190 120 120 450 Overloaded Moves . | . . . . . . . Propulsion Burnouts . | . . . . . . . Robots Hopped . | . . . . . . . Cave-ins Triggered . | . . . . . . . Exploration Rate (%) 50 | 6 68 54 24 78 60 60 Regions Visited 6 Branch Regions 4 Pre-discovered Areas 2 | . . . . 1 . 1 Known Exits Taken 4 | . . 1 1 1 1 . Unknown Exits Taken 2 | 1 1 . . . . . Scrap Searched 6 | . . 1 . 1 1 3 Spaces Dug . | . . . . . . . Terrain Destroyed 63 | . 54 . . . . 9 Melee . | . . . . . . . Projectile 9 | . . . . . . 9 AOE 54 | . 54 . . . . . Terrain Rammed . | . . . . . . . Walls Destroyed . | . . . . . . . Machines Disabled . | . . . . . . . Actions | -11 -10 -10 -9 -9 -7 -6 --------- Run | Yrd Mat Min Mat Min Zio Pro Total 2368 | 115 438 270 262 397 448 438 Wait 93 | 1 16 3 . 60 6 7 Move 2004 | 88 356 221 201 313 434 391 Hop . | . . . . . . . Pick Up 47 | 11 14 6 9 . 4 3 Fast Attach 2 | . 1 . 1 . . . Attach 15 | 6 . 1 2 . . 6 Detach 1 | . . . . . . 1 Swap 40 | 7 12 7 8 3 . 3 Drop 32 | . 10 7 8 3 4 . Fire 132 | 2 29 23 33 18 . 27 Melee . | . . . . . . . Ram . | . . . . . . . Kick 2 | . . 2 . . . . Crush . | . . . . . . . Escape Stasis . | . . . . . . . Rewire . | . . . . . . . Trap . | . . . . . . . Miscellaneous . | . . . . . . . Route ------- -11/Scrapyard -10/Materials (discovered 3 exits: *Mat / [*Min] / [*Sub]) -10/Mines (discovered 2 exits: *Mat x2) -9/Materials -9/Mines (discovered 2 exits: *Mat / *Zio) -7/Zion -6/Proximity Caves (discovered 1 exit: Fac) History --------- Turn | Location | Event 2 | -11/Scrapyard | Met Revision 17 62 | -11/Scrapyard | Discovered new exit (range 8) 88 | -11/Scrapyard | Entered Materials 292 | -10/Materials | Discovered new exit (range 3) 302 | -10/Materials | Build established: Mutant 442 | -10/Materials | Discovered new exit (range 7) 564 | -10/Materials | Discovered new exit (range 13) 600 | -10/Materials | Entered Mines 632 | -10/Mines | Found a damaged Exp. Sensor Array with a note attached 636 | -10/Mines | Found Prototype Device 726 | -10/Mines | Identified exit to Materials 823 | -10/Mines | Core integrity fell below 50% 947 | -10/Mines | Discovered exit to Materials (range 4) 964 | -10/Mines | Learned 2 Materials zone layouts 999 | -10/Mines | Entered Materials 999 | -9/Materials | Evolved 2 slots: Propulsion x2 1138 | -9/Materials | Destroyed 8 combat bots 1322 | -9/Materials | Discovered new exit (range 12) 1349 | -9/Materials | Identified Exp. Sensor Array 1362 | -9/Materials | Identified exit to Mines 1363 | -9/Materials | Entered Mines 1364 | -9/Mines | Learned location of Storage (-8) 1459 | -9/Mines | Excavation squad dispatched 1459 | -9/Mines | A large section of the Mines collapsed 1461 | -9/Mines | Build established: Scavenger-Mutant 1571 | -9/Mines | Discovered new exit (range 7) 1582 | -9/Mines | Identified exit to Materials 1835 | -9/Mines | A Derelict revealed a hidden shortcut to a safe place 1843 | -9/Mines | Identified exit to Zion 1850 | -9/Mines | Entered Zion 2360 | -7/Zion | Discovered new exit (range 12) 2382 | -7/Zion | Identified exit to Proximity Caves 2383 | -7/Zion | Entered Proximity Caves 2384 | -6/Proximity Caves | Identified exit to Factory 2577 | -6/Proximity Caves | Attracted the attention of an 0b10 checkpoint 2650 | -6/Proximity Caves | Lost 7 parts (1p4n2w) 2883 | -6/Proximity Caves | Build established: Mutant 3122 | -6/Proximity Caves | Spotted B-75 Beast 3144 | -6/Proximity Caves | Core integrity fell below 50% 3157 | -6/Proximity Caves | Core integrity fell below 20% 3168 | -6/Proximity Caves | Lost 4 parts (1p1n2w) 3455 | -6/Proximity Caves | Destroyed by B-75 Beast with Magnetic Acceleration Cannon Last Messages --------------- Acquired 38 matter. Acquired 8 matter. Acquired 3 matter. Arc Thrower destroyed. VTOL Module destroyed. Ion Engine destroyed. Minigun destroyed. Critical hit (Meltdown: +250). Searching scrap... Found System Restoration Module. Found 35 Matter. Bump into an enemy to attack with the active melee weapon. Even while active, melee weapons do not fire together with ranged weapons in the same volley. M-22 Extractor knocked back. M-22 Extractor destroyed. Wheel fries itself beyond repair. Slug Cannon blasted off. [Achievement: First Step to Greatness] Map ----- +----------------------------------------------------+ | #?????#####????????? ?? #??# ?????????????? | | #?????# ##???????? #?# ## ?????????????? | | ??????## ##??????## ## ????????????? | | ????### ##?????#" ????????????? | | ???## #????## % ???????????? | | #### #????# ???????????? | | #????# ?? #???????? | | #????## ###### ?? ##?????? | | #### ##??### # ## #?# ##????? | | ####" " ## ## ##???? | | ##"% " # ????? | | ### " ## ?????? | | #?### "" % " ## ??????? | | #???## #### #? # ???????? | | #????## #?##% ##?## #????????? | | #?????# #?#" ### #?????????? | | #?????# ###" #?? #??????????? | | #?????# ## ### ##???#" #???????????? | | ##?????# % ##?######?????#" #???????????? | | ??????# "##????#####?????#" #????????????? | | ?????# ######??# ##????#" ##????????????? | | ????# #??# #### ####?## #?????????????? | | ????# ######## ## ###BB #?????????????? | | ????#####?????#; BB##?????????????? | | ???????????????### #??????????????? | | #????????????????## % @ ##### #??????????????? | | ###???????????????## #???# #??????????????? | | ################## #???# #??????????????? | | ## #???# ??????????????? | | #???# ?????????????? | | & ########## #??######??